bitfinex/quotes_SOLUSD_20260113
["timestamp","ask_amount","ask_price","bid_price","bid_amount"]
[1768316037412,0.67552351,142.48,142.42,0.69120025]
[1768316037719,7.01912638,142.47,142.42,6.10343281]
[1768316038434,24.56668025,142.47,142.42,0.69120025]
[1768316038726,0.67288514,142.46,142.4,18.90343281]
[1768316039232,7.02000702,142.45,142.41,6.10343281]
[1768316039607,7.02000702,142.45,142.41,0.69120025]
[1768316040027,12.8465374,142.45,142.39,0.69120025]
[1768316041523,5.83790737,142.38,142.31,12.4389797]
[1768316041708,0.42567481,142.38,142.32,5.41223256]
[1768316041907,5.41223256,142.38,142.32,5.41223256]
[1768316042108,0.67302502,142.38,142.32,18.21223256]
[1768316042611,0.67302502,142.38,142.31,18.21223256]
[1768316042805,6.08525758,142.38,142.31,18.21223256]
[1768316043026,0.67302502,142.38,142.32,5.41223256]
[1768316043225,7.69696871,142.38,142.32,12.438573]
[1768316043425,5.41223256,142.4,142.34,0.69120025]
[1768316043633,5.41223256,142.4,142.34,6.10343281]
[1768316043930,5.83790737,142.4,142.34,6.10343281]
[1768316044513,12.86055057,142.4,142.34,6.10343281]
[1768316045525,12.86055057,142.4,142.34,18.90343281]
[1768316045723,0.66167858,142.39,142.31,7.69505929]
[1768316045944,0.44158203,142.36,142.32,12.8]
[1768316046151,0.66167858,142.38,142.33,0.66820767]
[1768316046309,30.43043682,142.4,142.34,0.66820767]
[1768316046643,12.87579338,142.41,142.36,0.66820767]
[1768316046817,7.46356082,142.41,142.36,0.66820767]
[1768316047246,7.46356082,142.41,142.36,6.08044023]
[1768316047412,7.0216637,142.42,142.37,6.08044023]
[1768316047737,12.43389626,142.42,142.37,0.66820767]
[1768316048351,0.66167858,142.41,142.33,0.66820767]
[1768316048528,24.57537806,142.42,142.33,0.66820767]
[1768316048529,5.41223256,142.37,142.33,0.66820767]
[1768316048939,7.02381056,142.38,142.33,0.66820767]
[1768316049243,17.55673051,142.4,142.34,0.66820767]
[1768316049429,5.41223256,142.39,142.34,0.66820767]
[1768316049760,5.41223256,142.38,142.34,0.66820767]
[1768316050324,24.58038668,142.39,142.34,0.66820767]
[1768316050525,5.41223256,142.38,142.34,0.66820767]
[1768316050948,7.02362813,142.38,142.34,0.66820767]
[1768316051564,12.43586069,142.38,142.34,0.66820767]
[1768316052844,12.43586069,142.38,142.32,12.8]
[1768316052845,0.43938129,142.35,142.25,0.66820767]
[1768316053057,5.41223256,142.33,142.26,0.66820767]
[1768316053227,5.41223256,142.33,142.27,13.46820767]
[1768316054846,5.41223256,142.33,142.27,0.66820767]
[1768316055147,7.02641933,142.32,142.27,13.48820767]
[1768316055650,5.41223256,142.3,142.23,13.24431134]
[1768316055840,5.41223256,142.3,142.24,0.70152968]
[1768316056359,5.41223256,142.31,142.25,7.7310533]
[1768316056653,5.41223256,142.31,142.26,0.70152968]
[1768316056953,5.41223256,142.3,142.24,20.55171626]
[1768316057129,12.43977155,142.3,142.25,0.70152968]
[1768316057329,7.02753899,142.3,142.25,0.70152968]
[1768316057529,12.43977155,142.3,142.25,0.70152968]
[1768316058553,13.10116891,142.31,142.26,0.70152968]
[1768316058751,5.41223256,142.27,142.23,0.70152969]
[1768316059447,5.41223256,142.28,142.23,0.70152969]
[1768316060032,12.44091088,142.28,142.23,0.70152969]
[1768316060233,7.02867832,142.28,142.23,0.70152969]
[1768316061047,7.02867832,142.28,142.24,0.70152968]
[1768316062649,12.44091088,142.28,142.23,1e-08]
[1768316063162,30.01189766,142.28,142.23,0.70152969]
[1768316063934,30.01189766,142.28,142.19,17.58133687]
[1768316063935,0.66186831,142.24,142.18,7.03303754]
[1768316064138,13.104523,142.24,142.18,7.03303754]
[1768316064353,7.03042213,142.24,142.18,7.03303754]
[1768316065146,7.03042213,142.24,142.18,12.4452701]
[1768316065546,30.01680197,142.25,142.18,12.4452701]
[1768316065939,30.01680197,142.25,142.19,0.70152968]
[1768316066339,30.01680197,142.25,142.2,0.70152968]
[1768316066882,12.44210953,142.25,142.2,0.70152968]
[1768316067036,5.41223256,142.24,142.2,0.70152968]
[1768316067238,30.01680197,142.25,142.2,0.70152968]
[1768316067543,30.49707594,142.25,142.2,0.70152968]
[1768316068358,5.41223256,142.24,142.2,0.70152968]
[1768316068657,59.76235672,142.23,142.13,0.70152968]
[1768316068858,0.66186831,142.21,142.14,0.70152968]
[1768316069046,5.41223256,142.18,142.13,0.70152968]
[1768316069245,0.37845821,142.17,141.94,0.70152968]
[1768316069568,0.37845821,142.17,141.87,5.41223256]
[1768316069569,3.66978315,141.94,141.87,5.41223256]
[1768316069860,3.66978315,141.94,141.8,29.79883292]
[1768316069861,3.66978315,141.94,141.88,12.82]
[1768316070033,3.66978315,141.94,141.89,12.82]
[1768316070231,9.08201571,141.94,141.87,12.82]
[1768316070448,3.66978315,141.94,141.87,12.82]
[1768316070652,3.66978315,141.94,141.88,18.23223256]
[1768316070653,10.71515497,141.94,141.88,18.23223256]
[1768316070850,28.32823091,141.94,141.81,15.0]
[1768316071060,3.66978315,141.94,141.89,5.41223256]
[1768316071242,3.66978315,141.94,141.83,15.0]
[1768316071554,3.66978315,141.94,141.91,0.70152968]
[1768316071856,7.70454989,142.0,141.92,18.93376224]
[1768316072056,7.70454989,142.0,141.94,5.41223256]
[1768316073536,5.41223256,141.96,141.85,17.62340601]
[1768316073739,0.66186831,141.96,141.89,5.41223256]
[1768316073938,0.66186831,141.96,141.91,5.41223256]
[1768316074237,5.41223256,141.98,141.92,12.82]
[1768316074238,0.66186831,141.98,141.92,12.82]
[1768316074651,6.07410087,141.98,141.92,9.15227814]
[1768316074850,7.04374163,141.97,141.9,5.41223256]
[1768316075142,7.04374163,141.97,141.93,12.84]
[1768316075338,7.70517275,141.98,141.94,12.84]
[1768316077142,7.04330444,141.98,141.94,12.84]
[1768316077744,25.34993621,142.0,141.94,5.41223256]
[1768316077956,7.74318755,142.0,141.95,12.84]
[1768316078163,0.70050311,141.99,141.95,12.84]
[1768316078340,0.70050311,141.99,141.94,5.41223256]
[1768316078341,0.70050311,141.98,141.92,5.41223256]
[1768316078661,7.74414494,141.98,141.93,12.84]
[1768316078864,7.74414494,141.98,141.94,12.84]
[1768316078865,0.70050311,141.97,141.94,12.84]
[1768316079068,0.70050311,141.97,141.91,5.41223256]
[1768316079247,0.70050311,141.97,141.95,11.39]
[1768316079577,12.45587439,141.98,141.95,12.61550311]
[1768316079757,12.9563775,141.98,141.94,12.84]
[1768316080072,5.41223256,141.95,141.89,0.71813097]
[1768316080364,0.51294966,141.86,141.74,15.3090078]
[1768316080554,7.76678431,141.87,141.77,12.46562572]
[1768316080555,0.69862757,141.83,141.77,12.46562572]
[1768316080748,0.69862757,141.83,141.78,5.41223256]
[1768316081059,7.74936761,141.83,141.74,28.1490078]
[1768316081252,13.16160017,141.83,141.76,12.46627048]
[1768316081571,6.11273567,141.86,141.79,5.41223256]
[1768316081771,6.11273567,141.86,141.8,5.41223256]
[1768316081772,7.74971526,141.86,141.8,5.41223256]
[1768316081944,7.74971526,141.86,141.76,30.10171066]
[1768316081945,0.51294966,141.88,141.82,5.41223256]
[1768316082146,0.51294966,141.88,141.83,5.41223256]
[1768316082458,0.70050311,141.91,141.85,5.41223256]
[1768316082657,7.74727287,141.91,141.84,7.05002726]
[1768316082972,7.74727287,141.91,141.86,5.41223256]
[1768316083268,7.04630837,141.92,141.86,5.41223256]
[1768316083459,7.04630837,141.92,141.86,8.85501578]
[1768316083973,7.04630837,141.92,141.87,8.85501578]
[1768316084944,0.69862757,141.89,141.8,0.71813097]
[1768316085144,9.55364335,141.89,141.82,0.71813097]
[1768316085345,9.55364335,141.89,141.82,9.57314675]
[1768316085649,9.55364335,141.89,141.82,0.71813097]
[1768316085854,9.55364335,141.89,141.82,9.57314675]
[1768316086171,24.66004367,141.93,141.8,0.71813097]
[1768316086172,9.36982222,141.88,141.8,0.71813097]
[1768316086372,9.36982222,141.88,141.8,22.41314675]
[1768316086562,9.36982222,141.88,141.81,0.71813097]
[1768316086874,7.04870656,141.87,141.81,9.57314675]
[1768316087373,7.04870656,141.87,141.81,29.46480375]
[1768316087562,18.31747832,141.91,141.83,9.57314675]
[1768316087764,7.04721634,141.9,141.83,9.57314675]
[1768316088151,7.04721634,141.9,141.84,8.85501578]
[1768316088352,8.85501578,142.0,141.87,8.85501578]
[1768316088353,9.55551889,141.94,141.87,8.85501578]
[1768316088561,16.4136922,141.93,141.86,9.57314675]
[1768316088767,16.4136922,141.93,141.86,22.41314675]
[1768316088969,16.4136922,141.93,141.86,0.71813097]
[1768316089164,0.69862757,141.92,141.86,0.71813097]
[1768316089369,0.51480644,141.91,141.81,0.71813097]
[1768316089574,8.85501578,141.85,141.79,0.71813097]
[1768316089857,8.85501578,141.86,141.8,0.71813097]
[1768316090160,8.85501578,141.87,141.81,0.71813097]
[1768316091074,8.85501578,141.87,141.81,7.76977768]
[1768316091453,9.36982222,141.87,141.81,0.71813097]
[1768316091655,0.69678936,141.86,141.81,12.86]
[1768316091862,9.55180514,141.86,141.81,12.86]
[1768316092266,0.69678936,141.86,141.81,12.86]
[1768316092463,0.69678936,141.86,141.74,15.3090078]
[1768316092464,0.70050311,141.81,141.74,15.3090078]
[1768316092654,8.85501578,141.76,141.74,15.3090078]
[1768316092859,9.55551889,141.77,141.74,15.3090078]
[1768316093058,17.63267946,141.79,141.74,13.47224275]
[1768316093279,8.85501578,141.76,141.73,12.86]
[1768316093770,24.68613344,141.78,141.73,12.86]
[1768316093974,7.05282354,141.79,141.73,12.86]
[1768316094163,15.90783932,141.79,141.74,12.86]
[1768316094582,17.62817733,141.82,141.74,13.57813097]
[1768316094782,17.62817733,141.82,141.75,0.71813097]
[1768316094981,17.62425096,141.85,141.75,0.71813097]
[1768316095166,59.92317122,141.85,141.75,7.77278871]
[1768316095367,8.85501578,141.84,141.77,9.57314675]
[1768316095575,8.85501578,141.84,141.78,12.86]
[1768316095785,8.85501578,141.79,141.76,12.86]
[1768316096083,8.85501578,141.8,141.77,12.86]
[1768316096284,8.85501578,141.81,141.77,12.86]
[1768316096987,7.05069449,141.83,141.77,22.43314675]
[1768316097181,33.5324465,141.83,141.77,0.71813097]
[1768316097383,33.5324465,141.83,141.78,12.86]
[1768316097785,33.5324465,141.83,141.77,0.71813097]
[1768316097990,33.5324465,141.83,141.78,12.86]
[1768316098191,7.05069449,141.83,141.78,12.86]
[1768316098396,7.05069449,141.83,141.79,12.86]
[1768316098691,7.05069449,141.83,141.8,12.86]
[1768316099482,7.0501974,141.84,141.8,12.86]
[1768316100588,7.0501974,141.84,141.81,12.86]
[1768316100792,33.53070669,141.84,141.81,12.86]
[1768316101498,33.53070669,141.84,141.8,12.86]
[1768316101682,24.67569091,141.84,141.8,12.86]
[1768316101885,33.53070669,141.84,141.8,12.86]
[1768316102197,24.67569091,141.84,141.8,12.86]
[1768316102398,6.9796374,141.84,141.8,21.71501578]
[1768316102791,0.70050311,141.84,141.75,12.86]
[1768316102987,8.85501578,141.82,141.76,8.85501578]
[1768316103184,0.11645158,141.83,141.76,8.85501578]
[1768316103587,0.70050311,141.85,141.79,8.85501578]
[1768316103778,0.70050311,141.85,141.8,12.86]
[1768316103980,8.97146736,141.84,141.78,12.86]
[1768316104188,0.69466259,141.83,141.77,8.85501578]
[1768316104422,0.69466259,141.83,141.78,8.85501578]
[1768316104607,0.70050311,141.85,141.79,8.85501578]
[1768316104998,8.97146736,141.84,141.78,0.72203083]
[1768316105206,0.11645158,141.84,141.77,12.86]
[1768316105407,0.11645158,141.84,141.79,8.85501578]
[1768316105582,7.74170349,141.86,141.79,8.85501578]
[1768316105905,0.12437461,141.85,141.79,8.85501578]
[1768316106210,8.97939039,141.85,141.78,29.4900846]
[1768316106382,8.97939039,141.85,141.78,20.63506882]
[1768316106584,0.12437461,141.85,141.79,8.85501578]
[1768316107024,24.67221204,141.86,141.8,0.72203083]
[1768316107310,24.79658665,141.86,141.8,9.57704661]
[1768316107604,7.17357805,141.86,141.81,8.85501578]
[1768316107993,0.68681879,141.85,141.8,8.85501578]
[1768316108192,15.90421922,141.86,141.72,9.57704661]
[1768316108193,0.099,141.8,141.72,9.57704661]
[1768316108393,0.099,141.8,141.72,0.72203083]
[1768316108394,8.85501578,141.78,141.72,0.72203083]
[1768316108789,8.85501578,141.78,141.72,9.57704661]
[1768316109110,9.43695638,141.79,141.73,0.72203083]
[1768316109313,21.71501578,141.8,141.74,0.72203083]
[1768316109494,12.86,141.8,141.75,0.72203083]
[1768316109687,8.85501578,141.8,141.75,0.72203083]
[1768316110010,7.63859594,141.81,141.76,8.85501578]
[1768316110720,25.26781813,141.81,141.75,0.72203083]
[1768316110890,25.26781813,141.81,141.76,8.85501578]
[1768316111089,35.2460172,141.86,141.78,0.72203083]
[1768316111292,0.099,141.85,141.8,8.85501578]
[1768316111600,8.85501578,141.86,141.8,9.57704661]
[1768316111804,9.43695638,141.86,141.8,9.57704661]
[1768316111987,24.67440202,141.85,141.81,0.72203083]
[1768316112495,7.04970038,141.85,141.81,9.57704661]
[1768316112888,7.04970038,141.85,141.79,0.72203083]
[1768316113084,7.04970038,141.85,141.81,9.57704661]
[1768316113288,7.04970038,141.85,141.82,0.72203083]
[1768316113516,7.04970038,141.85,141.82,8.85501578]
[1768316113890,17.62218347,141.87,141.82,8.85501578]
[1768316114110,5.19116788,141.86,141.82,8.85501578]
[1768316114299,5.2044555,141.85,141.82,8.85501578]
[1768316114615,5.2044555,141.84,141.82,8.85501578]
[1768316114816,17.62218347,141.87,141.82,8.85501578]
[1768316115006,0.57715949,141.85,141.76,0.72203083]
[1768316115206,5.31321014,141.84,141.79,8.85501578]
[1768316115412,5.20464744,141.83,141.79,8.85501578]
[1768316115709,5.20464744,141.82,141.8,8.85501578]
[1768316115912,0.1085627,141.84,141.8,8.85501578]
[1768316116104,5.20442452,141.83,141.8,8.85501578]
[1768316116304,0.58681879,141.87,141.82,8.85501578]
[1768316116514,5.20613784,141.86,141.82,8.85501578]
[1768316116706,5.20613784,141.85,141.82,8.85501578]
[1768316116913,5.20613784,141.84,141.82,8.85501578]
[1768316117108,24.67221204,141.86,141.8,0.72471629]
[1768316117318,5.20711289,141.85,141.82,8.85501578]
[1768316117503,5.20711289,141.84,141.83,8.85501578]
[1768316117704,7.04886009,141.87,141.83,8.85501578]
[1768316117903,5.20990884,141.86,141.83,8.85501578]
[1768316118196,12.25966399,141.85,141.83,12.86]
[1768316118514,5.21273979,141.84,141.82,13.58471629]
[1768316118726,5.21273979,141.83,141.82,13.58471629]
[1768316118910,5.21273979,141.83,141.82,22.43973207]
[1768316119436,7.04888,141.87,141.82,21.71501578]
[1768316119717,7.04888,141.87,141.84,8.85501578]
[1768316119892,7.72124359,141.87,141.84,8.85501578]
[1768316120094,0.17553395,141.86,141.84,8.85501578]
[1768316120819,0.17553395,141.86,141.85,8.85501578]
[1768316121194,0.00316854,141.86,141.85,8.85501578]
[1768316123330,7.72021645,141.89,141.85,8.85501578]
[1768316123531,0.67236359,141.89,141.87,8.85501578]
[1768316123728,0.67236359,141.89,141.88,8.85501578]
[1768316123940,7.71950959,141.91,141.88,8.85501578]
[1768316124121,0.67236359,141.93,141.9,8.85501578]
[1768316124317,0.67236359,141.93,141.91,12.86]
[1768316124727,0.67236359,141.93,141.92,8.85501578]
[1768316125027,7.71709765,141.95,141.91,12.86]
[1768316125210,7.71709765,141.95,141.92,8.85501578]
[1768316125410,7.71709765,141.95,141.91,12.86]
[1768316125619,7.71709765,141.95,141.93,8.85501578]
[1768316125822,7.04473406,141.95,141.93,8.85501578]
[1768316126030,7.71645177,141.97,141.94,8.85501578]
[1768316126223,7.24343147,141.98,141.96,8.85501578]
[1768316126420,7.24343147,141.98,141.96,21.71501578]
[1768316126621,7.24343147,141.98,141.96,12.86]
[1768316127433,0.2,141.98,141.96,8.85501578]
[1768316127609,0.2,141.98,141.97,21.71501578]
[1768316127806,0.2,141.98,141.93,7.045534]
[1768316128031,0.2,141.98,141.96,8.85501578]
[1768316128227,0.2,141.98,141.97,8.85501578]
[1768316128426,0.2,141.98,141.94,37.51786436]
[1768316128613,0.2,141.98,141.97,8.85501578]
[1768316128934,0.2,141.98,141.97,8.7950158]
[1768316129235,0.14370552,141.98,141.97,8.7950158]
[1768316129532,0.05222707,141.98,141.97,8.7950158]
[1768316129753,0.67236359,142.01,141.97,8.7950158]
[1768316130039,0.67236359,142.01,141.98,21.71501578]
[1768316130211,0.67236359,142.01,141.99,8.85501578]
[1768316130420,0.67236359,142.05,142.0,8.85501578]
[1768316130733,0.67236359,142.05,141.98,19.90319503]
[1768316130934,7.71125865,142.07,142.0,8.85501578]
[1768316131130,7.71125865,142.07,142.04,8.85501578]
[1768316131322,7.71125865,142.07,142.05,12.80000002]
[1768316131731,7.71125865,142.07,142.04,12.86]
[1768316131915,7.71125865,142.07,142.04,21.71501578]
[1768316132115,7.71125865,142.07,142.04,12.86]
[1768316132334,7.71125865,142.07,142.04,21.71501578]
[1768316132942,7.71125865,142.07,142.05,8.85501578]
[1768316133128,7.71125865,142.07,142.04,12.86]
[1768316133328,7.71125865,142.07,142.05,8.85501578]
[1768316133723,7.71125865,142.07,142.01,7.04171799]
[1768316133724,0.67236359,142.09,142.0,8.85501578]
[1768316133924,0.67236359,142.08,142.04,8.85501578]
[1768316134313,7.71114728,142.07,142.04,8.85501578]
[1768316134534,0.67236359,142.06,141.98,7.04284427]
[1768316134724,0.67236359,142.06,142.01,8.85501578]
[1768316136132,0.67236359,142.06,142.02,8.85501578]
[1768316136335,7.71209914,142.06,142.02,8.85501578]
[1768316137417,7.71209914,142.06,142.03,8.85501578]
[1768316137843,7.71209914,142.06,142.04,8.85501578]
[1768316138048,7.71209914,142.06,142.03,8.85501578]
[1768316138247,13.49486947,142.1,142.05,8.85501578]
[1768316138561,7.69281411,142.09,142.05,8.85501578]
[1768316138919,7.69215893,142.11,142.06,8.85501578]
[1768316139150,7.69215893,142.11,142.07,8.85501578]
[1768316139838,7.69215893,142.11,142.06,8.85501578]
[1768316140037,25.28416512,142.11,142.03,7.04064554]
[1768316140243,0.65486947,142.1,142.05,8.85501578]
[1768316140443,7.03779294,142.09,142.05,8.85501578]
[1768316140750,7.03779294,142.09,142.06,8.85501578]
[1768316141618,0.65486947,142.08,142.06,8.85501578]
[1768316141825,0.65486947,142.08,142.01,12.84]
[1768316142038,0.65486947,142.08,142.04,8.85501578]
[1768316142432,0.65486947,142.1,142.06,8.85501578]
[1768316143240,7.69117681,142.12,142.09,8.85501578]
[1768316143431,7.69117681,142.12,142.08,5.43335712]
[1768316143627,0.65486947,142.11,142.04,7.04009647]
[1768316143832,0.65486947,142.11,142.05,5.43335712]
[1768316144431,0.65486947,142.11,142.06,5.43335712]
[1768316144757,0.65486947,142.11,142.03,7.04043437]
[1768316144758,0.65486947,142.09,142.04,5.43335712]
[1768316144934,0.65486947,142.08,142.04,5.43335712]
[1768316145848,0.65486947,142.08,142.02,7.04095507]
[1768316146165,0.65486947,142.08,142.01,7.04169379]
[1768316146355,0.65486947,142.08,142.03,5.43335712]
[1768316147145,7.69365316,142.07,142.03,5.43335712]
[1768316147449,7.69365316,142.07,142.01,7.04156322]
[1768316147638,7.69365316,142.07,142.03,5.43335712]
[1768316149654,12.84,142.09,142.06,5.43335712]
[1768316149857,0.65486947,142.1,142.06,5.43335712]
[1768316150558,0.65486947,142.1,142.07,5.43335712]
[1768316150855,7.6913551,142.12,142.08,5.43335712]
[1768316151056,7.6913551,142.12,142.09,5.43335712]
[1768316151754,0.85486947,142.14,142.11,5.43335712]
[1768316151954,7.89034095,142.14,142.1,5.43335712]
[1768316152253,7.89034095,142.14,142.09,5.43335712]
[1768316152431,0.65486947,142.13,142.08,5.43335712]
[1768316152637,0.65486947,142.11,142.06,5.43335712]
[1768316152837,0.65486947,142.11,142.07,5.43335712]
[1768316153235,7.69216714,142.1,142.07,5.43335712]
[1768316153938,7.69216714,142.1,142.06,5.43335712]
[1768316155239,0.65486947,142.07,142.0,23.03871595]
[1768316155447,0.65486947,142.07,142.04,5.43335712]
[1768316156042,0.65486947,142.07,142.03,5.43335712]
[1768316156241,20.5327786,142.09,142.01,7.04175762]
[1768316156457,20.5327786,142.09,142.06,5.43335712]
[1768316157949,20.5327786,142.09,142.04,7.03980419]
[1768316158147,20.5327786,142.09,142.06,5.43335712]
[1768316158740,0.65486947,142.11,142.07,5.43335712]
[1768316159164,0.65486947,142.11,142.09,5.43335712]
[1768316160746,12.84,142.12,142.1,5.43335712]
[1768316161147,12.84,142.12,142.07,17.59631753]
[1768316161352,12.84,142.12,142.09,5.43335712]
[1768316161569,0.65486947,142.13,142.1,5.43335712]
[1768316161748,7.69071602,142.13,142.1,5.43335712]
[1768316162567,0.65486947,142.13,142.1,5.43335712]
[1768316163452,0.2,142.14,142.12,5.43335712]
[1768316163673,0.2,142.14,142.13,5.43335712]
[1768316163873,0.65486947,142.19,142.13,5.43335712]
[1768316164074,13.49486947,142.18,142.16,5.43335712]
[1768316164262,13.49486947,142.18,142.15,5.43335712]
[1768316165477,13.50825925,142.18,142.16,5.43335712]
[1768316165853,0.66825925,142.18,142.16,5.43335712]
[1768316166150,7.23249512,142.2,142.16,5.43335712]
[1768316166151,0.86825925,142.2,142.17,5.43335712]
[1768316166346,0.2,142.2,142.16,7.0343023]
[1768316166566,0.2,142.2,142.19,5.43335712]
[1768316167163,28.81726705,142.21,142.19,5.43335712]
[1768316167370,28.81726705,142.21,142.16,30.05347821]
[1768316167371,28.1490078,142.21,142.16,30.05347821]
[1768316167577,28.1490078,142.21,142.2,5.43335712]
[1768316167759,15.3090078,142.21,142.2,5.43335712]
[1768316168078,15.3090078,142.21,142.19,5.43335712]
[1768316168656,15.3090078,142.21,142.2,5.43335712]
[1768316168982,23.00912134,142.21,142.16,7.03399093]
[1768316169192,0.66825925,142.2,142.16,5.43335712]
[1768316169696,0.66825925,142.2,142.17,5.43335712]
[1768316170186,28.1490078,142.21,142.19,5.43335712]
[1768316170485,28.1490078,142.21,142.18,5.43335712]
[1768316170783,35.84914965,142.21,142.18,5.43335712]
[1768316172494,35.84914965,142.21,142.18,5.37335712]
[1768316172858,28.81726705,142.21,142.18,5.37335712]
[1768316173388,35.84924738,142.21,142.18,5.37335712]
[1768316173582,35.84924738,142.21,142.14,17.58748537]
[1768316173781,35.84924738,142.21,142.18,5.43335712]
[1768316173980,35.84924738,142.21,142.18,5.37335712]
[1768316174781,35.84924738,142.21,142.18,5.43335712]
[1768316175190,35.84924738,142.21,142.17,5.43335712]
[1768316175394,0.66825925,142.2,142.12,17.59036197]
[1768316175606,0.66825925,142.2,142.15,5.43335712]
[1768316176401,0.66825925,142.2,142.16,5.43335712]
[1768316176586,7.03284337,142.19,142.16,5.43335712]
[1768316177390,0.68531056,142.17,142.09,17.59392819]
[1768316177583,0.68531056,142.17,142.13,5.43335712]
[1768316177899,0.68531056,142.17,142.09,17.59392819]
[1768316178105,0.68531056,142.17,142.12,5.43335712]
[1768316178283,0.68531056,142.17,142.13,5.43335712]
[1768316178485,0.68531056,142.17,142.13,5.37335712]
[1768316179080,0.68531056,142.15,142.09,24.63172113]
[1768316179280,13.52531056,142.15,142.12,5.43335712]
[1768316179536,0.68531056,142.14,142.12,5.43335712]
[1768316179908,0.68531056,142.14,142.08,7.03820307]
[1768316180090,0.68531056,142.13,142.07,7.03849736]
[1768316180405,12.84,142.12,142.1,5.43335712]
[1768316180904,12.84,142.12,142.08,7.03812245]
[1768316181086,12.84,142.12,142.11,5.43335712]
[1768316181286,12.84,142.14,142.11,5.43335712]
[1768316181510,12.84,142.14,142.13,5.43335712]
[1768316181703,12.84,142.14,142.05,12.84]
[1768316181896,12.84,142.14,142.11,5.43335712]
[1768316182307,12.84,142.14,142.08,5.43335712]
[1768316182608,13.52531056,142.14,142.11,5.43335712]
[1768316182988,7.72114875,142.13,142.08,7.03799526]
[1768316183184,7.7216179,142.12,142.06,17.59768418]
[1768316183399,7.7216179,142.12,142.08,5.43335712]
[1768316183600,12.84,142.11,142.08,5.43335712]
[1768316183901,12.84,142.11,142.09,5.43335712]
[1768316184322,12.84,142.11,142.1,5.43335712]
[1768316184518,12.84,142.12,142.1,5.43335712]
[1768316184716,12.84,142.13,142.11,5.43335712]
[1768316185830,12.84,142.13,142.12,5.43335712]
[1768316186318,12.84,142.13,142.09,7.03761005]
[1768316186501,12.84,142.13,142.11,5.43335712]
[1768316187220,12.84,142.13,142.12,5.43335712]
[1768316188124,0.68531056,142.17,142.12,5.43335712]
[1768316188294,0.68531056,142.17,142.13,5.43335712]
[1768316188492,0.68531056,142.19,142.15,5.43335712]
[1768316189019,0.68531056,142.2,142.17,5.43335712]
[1768316189220,7.71771874,142.2,142.17,5.43335712]
[1768316190115,7.71771874,142.2,142.14,7.03507782]
[1768316190312,7.71771874,142.2,142.16,5.43335712]
[1768316190515,7.71771874,142.2,142.16,5.37335714]
[1768316191607,0.68531056,142.19,142.16,5.43335712]
[1768316192233,7.71844513,142.19,142.16,5.43335712]
[1768316193228,0.68531056,142.18,142.16,5.43335712]
[1768316193420,0.68531056,142.18,142.14,7.03512923]
[1768316193421,0.68531056,142.18,142.15,5.43335712]
[1768316194026,0.68531056,142.18,142.11,7.03658236]
[1768316194027,0.68531056,142.17,142.11,7.03658236]
[1768316194223,0.68531056,142.16,142.11,5.43335712]
[1768316194408,0.68531056,142.16,142.12,5.43335712]
[1768316195218,7.03482237,142.15,142.12,5.43335712]
[1768316195532,7.71986571,142.16,142.12,5.43335712]
[1768316195734,7.71986571,142.16,142.13,5.43335712]
[1768316196216,7.71986571,142.16,142.11,7.03653064]
[1768316196417,7.71986571,142.16,142.12,5.43335712]
[1768316197645,0.65882485,142.15,142.1,7.03696789]
[1768316197937,0.65882485,142.15,142.11,5.43335712]
[1768316198333,0.65882485,142.15,142.12,5.43335712]
[1768316199550,0.65882485,142.15,142.1,7.03696789]
[1768316199844,7.69398349,142.15,142.12,5.43335712]
[1768316200212,7.69398349,142.15,142.08,24.63340143]
[1768316200213,0.65882485,142.14,142.08,24.63340143]
[1768316200427,0.65882485,142.14,142.11,5.43335712]
[1768316200740,7.03515864,142.15,142.11,5.43335712]
[1768316201041,7.69398349,142.15,142.11,5.43335712]
[1768316201345,7.69398349,142.15,142.1,12.47063286]
[1768316201346,0.65882485,142.14,142.1,12.47063286]
[1768316201553,0.65882485,142.14,142.11,12.4699676]
[1768316201720,0.65882485,142.14,142.11,7.03661048]
[1768316201920,0.65882485,142.14,142.11,5.43335712]
[1768316202117,0.65882485,142.14,142.06,30.43760745]
[1768316202344,0.65882485,142.14,142.09,5.43335712]
[1768316202535,0.65882485,142.13,142.08,7.03813356]
[1768316202838,18.27335712,142.14,142.08,12.47149068]
[1768316203050,7.69398349,142.15,142.12,5.43335712]
[1768316204650,0.65882485,142.15,142.12,12.4693895]
[1768316204848,0.65882485,142.16,142.13,5.43335712]
[1768316205357,0.65882485,142.16,142.12,7.03603238]
[1768316205358,0.65882485,142.16,142.14,8.82194656]
[1768316206231,12.84,142.17,142.14,8.82194656]
[1768316206428,0.65882485,142.2,142.16,8.82194656]
[1768316206657,0.65882485,142.2,142.14,24.62338811]
[1768316206855,0.65882485,142.2,142.17,8.82194656]
[1768316207761,0.65882485,142.2,142.14,24.62338811]
[1768316207938,0.65882485,142.2,142.16,8.82194656]
[1768316208259,0.65882485,142.2,142.17,8.82194656]
[1768316209055,0.65882485,142.2,142.16,15.85608086]